[Event "Late-Titled-Tuesday-Blitz-May-07-2024"]
[Site "Chess.com"]
[Date "2024.05.07"]
[Round "7"]
[White "PenguinPacks"]
[Black "mfschulz"]
[Result "0-1"]
[WhiteElo "2477"]
[BlackElo "2355"]
[TimeControl "180+1"]
[EndTime "15:14:03 PDT"]
[Termination "mfschulz won by checkmate"]

1. e4 {[%clk 0:03:00.9]} 1... g6 {[%clk 0:02:59]} 2. d4 {[%clk 0:03:00.4]} 2...
Bg7 {[%clk 0:02:58.7]} 3. Nc3 {[%clk 0:03:01.3]} 3... c5 {[%clk 0:02:57.9]} 4.
Be3 {[%clk 0:03:01.2]} 4... cxd4 {[%clk 0:02:57.2]} 5. Bxd4 {[%clk 0:03:02.1]}
5... Nf6 {[%clk 0:02:56.7]} 6. Nf3 {[%clk 0:03:01.9]} 6... Nc6 {[%clk
0:02:55.7]} 7. Be3 {[%clk 0:03:01.3]} 7... Ng4 {[%clk 0:02:55.2]} 8. Bg5 {[%clk
0:02:57.1]} 8... Qb6 {[%clk 0:02:54.5]} 9. Qe2 {[%clk 0:02:26.7]} 9... Qxb2
{[%clk 0:02:52.3]} 10. Rd1 {[%clk 0:02:27.3]} 10... Qxc3+ {[%clk 0:02:43]} 11.
Bd2 {[%clk 0:02:26.9]} 11... Qa3 {[%clk 0:02:36]} 12. h3 {[%clk 0:02:27.1]}
12... Nf6 {[%clk 0:02:34.5]} 13. Qc4 {[%clk 0:02:23.4]} 13... O-O {[%clk
0:02:25.4]} 14. h4 {[%clk 0:02:19.9]} 14... h5 {[%clk 0:02:14.1]} 15. Ng5 {[%clk
0:02:13.5]} 15... d6 {[%clk 0:02:08.2]} 16. Be2 {[%clk 0:02:06.4]} 16... Ne5
{[%clk 0:02:06.8]} 17. Qb5 {[%clk 0:02:05.4]} 17... a6 {[%clk 0:02:02.6]} 18.
Qb1 {[%clk 0:02:05.5]} 18... b5 {[%clk 0:01:50.6]} 19. O-O {[%clk 0:02:05.5]}
19... Be6 {[%clk 0:01:47.3]} 20. f4 {[%clk 0:01:57.4]} 20... Neg4 {[%clk
0:01:40]} 21. f5 {[%clk 0:01:52.8]} 21... Bxa2 {[%clk 0:01:35.2]} 22. Qa1 {[%clk
0:01:52.1]} 22... Qc5+ {[%clk 0:01:33.4]} 23. Kh1 {[%clk 0:01:47.7]} 23... Bc4
{[%clk 0:01:32.6]} 24. Bxc4 {[%clk 0:01:42.5]} 24... bxc4 {[%clk 0:01:32.6]} 25.
fxg6 {[%clk 0:01:42.7]} 25... fxg6 {[%clk 0:01:30.5]} 26. Be1 {[%clk 0:01:40.7]}
26... Nxe4 {[%clk 0:01:23]} 27. Rxf8+ {[%clk 0:01:34.3]} 27... Rxf8 {[%clk
0:01:22.4]} 28. Qxg7+ {[%clk 0:01:34.4]} 28... Kxg7 {[%clk 0:01:21]} 29. Ne6+
{[%clk 0:01:35.3]} 29... Kg8 {[%clk 0:01:15]} 30. Nxc5 {[%clk 0:01:36.2]} 30...
Nxc5 {[%clk 0:01:14.1]} 31. Ra1 {[%clk 0:01:34.2]} 31... Rf1# {[%clk 0:01:13.7]}
0-1

[Event "Late-Titled-Tuesday-Blitz-May-07-2024"]
[Site "Chess.com"]
[Date "2024.05.07"]
[Round "7"]
[White "Godzillator"]
[Black "TheDiscoOne"]
[Result "1-0"]
[WhiteElo "2357"]
[BlackElo "2498"]
[TimeControl "180+1"]
[EndTime "15:14:08 PDT"]
[Termination "Godzillator won by checkmate"]

1. c4 {[%clk 0:02:52]} 1... g6 {[%clk 0:02:54.1]} 2. e4 {[%clk 0:02:49.8]} 2...
Bg7 {[%clk 0:02:47.8]} 3. d4 {[%clk 0:02:49.8]} 3... c5 {[%clk 0:02:48]} 4. d5
{[%clk 0:02:49.8]} 4... d6 {[%clk 0:02:42.8]} 5. h4 {[%clk 0:02:49.6]} 5... h5
{[%clk 0:02:42.3]} 6. Bd3 {[%clk 0:02:48.5]} 6... e6 {[%clk 0:02:38.2]} 7. Bg5
{[%clk 0:02:38.8]} 7... Qb6 {[%clk 0:02:34.6]} 8. Nd2 {[%clk 0:02:33.1]} 8...
exd5 {[%clk 0:02:14.1]} 9. exd5 {[%clk 0:02:24.2]} 9... Nf6 {[%clk 0:02:08.6]}
10. Rb1 {[%clk 0:02:22.5]} 10... O-O {[%clk 0:02:06.5]} 11. Ne2 {[%clk
0:02:21.9]} 11... Nbd7 {[%clk 0:02:06.2]} 12. Nf3 {[%clk 0:02:14.5]} 12... Re8
{[%clk 0:02:03.1]} 13. O-O {[%clk 0:02:13.8]} 13... Ne5 {[%clk 0:02:01.9]} 14.
Nxe5 {[%clk 0:02:13.3]} 14... Rxe5 {[%clk 0:02:02.7]} 15. f4 {[%clk 0:02:11.6]}
15... Rxg5 {[%clk 0:01:44.8]} 16. hxg5 {[%clk 0:02:08.7]} 16... Ng4 {[%clk
0:01:43.5]} 17. Qd2 {[%clk 0:02:04.2]} 17... Bd7 {[%clk 0:01:38.8]} 18. f5
{[%clk 0:02:02]} 18... Be5 {[%clk 0:01:33.6]} 19. fxg6 {[%clk 0:01:58.1]} 19...
Rf8 {[%clk 0:01:25.2]} 20. gxf7+ {[%clk 0:01:54.9]} 20... Rxf7 {[%clk
0:01:26.1]} 21. Rxf7 {[%clk 0:01:54.1]} 21... Kxf7 {[%clk 0:01:27]} 22. Rf1+
{[%clk 0:01:51.2]} 22... Kg7 {[%clk 0:01:25]} 23. Nf4 {[%clk 0:01:43.8]} 23...
Be8 {[%clk 0:01:07.9]} 24. Ne6+ {[%clk 0:01:42.5]} 24... Kg8 {[%clk 0:01:07.1]}
25. Rf8# {[%clk 0:01:26.3]} 1-0

[Event "Late-Titled-Tuesday-Blitz-May-07-2024"]
[Site "Chess.com"]
[Date "2024.05.07"]
[Round "7"]
[White "Chessdude1987"]
[Black "PawnEatingZombie"]
[Result "1-0"]
[WhiteElo "2398"]
[BlackElo "2261"]
[TimeControl "180+1"]
[EndTime "15:14:15 PDT"]
[Termination "Chessdude1987 won by resignation"]

1. e4 {[%clk 0:03:00.9]} 1... c5 {[%clk 0:02:59.4]} 2. Nf3 {[%clk 0:03:00.8]}
2... Nc6 {[%clk 0:02:57.9]} 3. Bb5 {[%clk 0:03:00.5]} 3... g5 {[%clk 0:02:57.2]}
4. Nxg5 {[%clk 0:02:52.6]} 4... Nf6 {[%clk 0:02:57.1]} 5. Bxc6 {[%clk
0:02:47.5]} 5... dxc6 {[%clk 0:02:47.3]} 6. Qe2 {[%clk 0:02:47.5]} 6... e5
{[%clk 0:02:41.5]} 7. d3 {[%clk 0:02:42.6]} 7... Rg8 {[%clk 0:02:16.2]} 8. f4
{[%clk 0:02:38.4]} 8... Bg4 {[%clk 0:02:00.3]} 9. Qf2 {[%clk 0:02:34.5]} 9...
Rxg5 {[%clk 0:01:23.7]} 10. fxg5 {[%clk 0:02:34.2]} 10... Nxe4 {[%clk
0:01:24.2]} 11. Qh4 {[%clk 0:02:34.4]} 11... Qa5+ {[%clk 0:01:05.5]} 12. Nd2
{[%clk 0:02:26.6]} 12... Nxd2 {[%clk 0:00:33.9]} 13. Bxd2 {[%clk 0:02:26.5]}
13... Qa4 {[%clk 0:00:33.6]} 14. h3 {[%clk 0:02:20.7]} 14... Qxc2 {[%clk
0:00:25.1]} 15. Qxg4 {[%clk 0:02:18.2]} 15... Rd8 {[%clk 0:00:22]} 16. Qe2
{[%clk 0:02:01.4]} 16... Bg7 {[%clk 0:00:20.9]} 17. Bc3 {[%clk 0:01:52.2]} 1-0

[Event "Late-Titled-Tuesday-Blitz-May-07-2024"]
[Site "Chess.com"]
[Date "2024.05.07"]
[Round "7"]
[White "klifus"]
[Black "dianamirza"]
[Result "0-1"]
[WhiteElo "2138"]
[BlackElo "1949"]
[TimeControl "180+1"]
[EndTime "15:14:17 PDT"]
[Termination "dianamirza won by resignation"]

1. e4 {[%clk 0:03:00.9]} 1... c5 {[%clk 0:02:48.4]} 2. Nf3 {[%clk 0:02:59.6]}
2... e6 {[%clk 0:02:48]} 3. d3 {[%clk 0:02:57.5]} 3... b5 {[%clk 0:02:46.1]} 4.
g3 {[%clk 0:02:56.3]} 4... Nc6 {[%clk 0:02:46.2]} 5. Bg2 {[%clk 0:02:55.9]} 5...
Bb7 {[%clk 0:02:46.7]} 6. O-O {[%clk 0:02:55.2]} 6... Nf6 {[%clk 0:02:47.1]} 7.
Nbd2 {[%clk 0:02:47.4]} 7... d5 {[%clk 0:02:44.6]} 8. e5 {[%clk 0:02:46.3]} 8...
Nd7 {[%clk 0:02:44.9]} 9. Re1 {[%clk 0:02:45.1]} 9... Qc7 {[%clk 0:02:44.4]} 10.
Qe2 {[%clk 0:02:43.8]} 10... Be7 {[%clk 0:02:39]} 11. Nf1 {[%clk 0:02:42.6]}
11... O-O {[%clk 0:02:33.5]} 12. Bf4 {[%clk 0:02:35.2]} 12... Rac8 {[%clk
0:02:23.2]} 13. Ne3 {[%clk 0:02:31.2]} 13... Nd4 {[%clk 0:01:59.4]} 14. Qd2
{[%clk 0:02:16]} 14... Nxf3+ {[%clk 0:01:52.6]} 15. Bxf3 {[%clk 0:02:15.4]}
15... d4 {[%clk 0:01:53.3]} 16. Ng4 {[%clk 0:01:58.3]} 16... Bxf3 {[%clk
0:01:50.9]} 17. Nf6+ {[%clk 0:01:56.1]} 17... Kh8 {[%clk 0:01:44.7]} 18. Nxd7
{[%clk 0:01:48.1]} 18... Qxd7 {[%clk 0:01:44.6]} 19. h3 {[%clk 0:01:44.9]} 19...
Ba8 {[%clk 0:01:41.4]} 20. Qe2 {[%clk 0:01:36.7]} 20... Qd5 {[%clk 0:01:39.7]}
21. Qe4 {[%clk 0:01:35.4]} 21... Qxe4 {[%clk 0:01:25.3]} 22. dxe4 {[%clk
0:01:34.3]} 22... c4 {[%clk 0:01:23]} 23. Rad1 {[%clk 0:01:32.4]} 23... Rfd8
{[%clk 0:01:22.4]} 24. Re2 {[%clk 0:01:30.6]} 24... d3 {[%clk 0:01:18.7]} 25.
cxd3 {[%clk 0:01:28.3]} 25... cxd3 {[%clk 0:01:19.6]} 26. Red2 {[%clk
0:01:26.8]} 26... Bxe4 {[%clk 0:01:19.6]} 27. f3 {[%clk 0:01:22]} 27... Bxf3
{[%clk 0:01:14.9]} 28. Rxd3 {[%clk 0:01:22.2]} 28... Bxd1 {[%clk 0:01:14.2]} 29.
Rxd8+ {[%clk 0:01:21.5]} 29... Rxd8 {[%clk 0:01:13.9]} 0-1

[Event "Late-Titled-Tuesday-Blitz-May-07-2024"]
[Site "Chess.com"]
[Date "2024.05.07"]
[Round "7"]
[White "rdarruda"]
[Black "SRob2003"]
[Result "0-1"]
[WhiteElo "2564"]
[BlackElo "2692"]
[TimeControl "180+1"]
[EndTime "15:14:25 PDT"]
[Termination "SRob2003 won by resignation"]

1. d4 {[%clk 0:03:00.9]} 1... d5 {[%clk 0:03:00]} 2. Nf3 {[%clk 0:03:00.3]} 2...
Nf6 {[%clk 0:02:59.1]} 3. g3 {[%clk 0:02:56.1]} 3... c5 {[%clk 0:02:57.5]} 4.
Bg2 {[%clk 0:02:54]} 4... Nc6 {[%clk 0:02:57.3]} 5. c3 {[%clk 0:02:53.6]} 5...
Bf5 {[%clk 0:02:56.6]} 6. O-O {[%clk 0:02:52.9]} 6... e6 {[%clk 0:02:56.7]} 7.
Be3 {[%clk 0:02:34.8]} 7... Qb6 {[%clk 0:02:47.4]} 8. Qb3 {[%clk 0:02:33.6]}
8... c4 {[%clk 0:02:45.9]} 9. Qxb6 {[%clk 0:02:32.3]} 9... axb6 {[%clk
0:02:46.8]} 10. Nbd2 {[%clk 0:02:31.2]} 10... h6 {[%clk 0:02:46.5]} 11. h3
{[%clk 0:02:29.4]} 11... Bd6 {[%clk 0:02:41.2]} 12. g4 {[%clk 0:02:27.8]} 12...
Bh7 {[%clk 0:02:40.4]} 13. a3 {[%clk 0:02:28]} 13... Ra5 {[%clk 0:02:38.1]} 14.
Ne1 {[%clk 0:02:12.7]} 14... Rb5 {[%clk 0:02:32.6]} 15. Ra2 {[%clk 0:02:08.6]}
15... O-O {[%clk 0:02:31.7]} 16. f4 {[%clk 0:02:08.5]} 16... Ra8 {[%clk
0:02:20.3]} 17. Nef3 {[%clk 0:02:08.1]} 17... Rba5 {[%clk 0:02:20.2]} 18. Ne5
{[%clk 0:02:07.2]} 18... b5 {[%clk 0:02:19.1]} 19. Nxc6 {[%clk 0:01:55.7]} 19...
bxc6 {[%clk 0:02:18.4]} 20. Raa1 {[%clk 0:01:45.8]} 20... b4 {[%clk 0:02:18.5]}
21. cxb4 {[%clk 0:01:45.9]} 21... Bxb4 {[%clk 0:02:18.2]} 22. Rac1 {[%clk
0:01:43.8]} 22... Bf8 {[%clk 0:02:16.3]} 23. Nb1 {[%clk 0:01:41.8]} 23... Rb5
{[%clk 0:02:16]} 24. f5 {[%clk 0:01:27.6]} 24... Rxb2 {[%clk 0:02:13.2]} 25. Bd2
{[%clk 0:01:03.9]} 25... exf5 {[%clk 0:01:56.6]} 26. gxf5 {[%clk 0:00:57.1]}
26... Bxa3 {[%clk 0:01:55.6]} 27. Bc3 {[%clk 0:00:48.2]} 27... Rxe2 {[%clk
0:01:50.5]} 28. Nxa3 {[%clk 0:00:48.5]} 28... Rxa3 {[%clk 0:01:49.5]} 29. Ra1
{[%clk 0:00:46.3]} 29... Rxc3 {[%clk 0:01:44.2]} 30. Ra8+ {[%clk 0:00:44.9]}
30... Re8 {[%clk 0:01:44.6]} 0-1

[Event "Late-Titled-Tuesday-Blitz-May-07-2024"]
[Site "Chess.com"]
[Date "2024.05.07"]
[Round "7"]
[White "SharathRk6"]
[Black "besarquis"]
[Result "1-0"]
[WhiteElo "2467"]
[BlackElo "2296"]
[TimeControl "180+1"]
[EndTime "15:14:37 PDT"]
[Termination "SharathRk6 won by resignation"]

1. e4 {[%clk 0:03:00.9]} 1... c5 {[%clk 0:02:56.6]} 2. Nf3 {[%clk 0:03:00.2]}
2... Nc6 {[%clk 0:02:56.9]} 3. Bb5 {[%clk 0:02:59.8]} 3... g6 {[%clk 0:02:54.7]}
4. O-O {[%clk 0:02:57]} 4... Bg7 {[%clk 0:02:54.7]} 5. d3 {[%clk 0:02:55.4]}
5... e5 {[%clk 0:02:49.7]} 6. Bxc6 {[%clk 0:02:55.5]} 6... dxc6 {[%clk
0:02:47.1]} 7. Be3 {[%clk 0:02:56]} 7... b6 {[%clk 0:02:46.6]} 8. a4 {[%clk
0:02:56.5]} 8... a5 {[%clk 0:02:46.7]} 9. Na3 {[%clk 0:02:55.1]} 9... Ne7 {[%clk
0:02:38.5]} 10. Nc4 {[%clk 0:02:54.4]} 10... Qc7 {[%clk 0:02:37.4]} 11. c3
{[%clk 0:02:52.4]} 11... O-O {[%clk 0:02:34.1]} 12. b4 {[%clk 0:02:51.6]} 12...
axb4 {[%clk 0:02:23.3]} 13. cxb4 {[%clk 0:02:47.9]} 13... cxb4 {[%clk
0:01:57.2]} 14. Bxb6 {[%clk 0:02:45.6]} 14... Qb8 {[%clk 0:01:52.4]} 15. Bc5
{[%clk 0:02:45.5]} 15... Re8 {[%clk 0:01:17.9]} 16. Rb1 {[%clk 0:02:43.8]} 16...
Bg4 {[%clk 0:00:56.7]} 17. Rxb4 {[%clk 0:02:41.1]} 17... Qc7 {[%clk 0:00:56.9]}
18. h3 {[%clk 0:02:35.6]} 18... Be6 {[%clk 0:00:54.8]} 19. Bd6 {[%clk
0:02:32.9]} 19... Qa7 {[%clk 0:00:50.7]} 20. Bxe5 {[%clk 0:02:28.8]} 20... c5
{[%clk 0:00:47.1]} 21. Rb1 {[%clk 0:02:22.5]} 21... Qxa4 {[%clk 0:00:45.5]} 22.
Bxg7 {[%clk 0:02:20.2]} 22... Kxg7 {[%clk 0:00:45]} 23. Qxa4 {[%clk 0:02:14.7]}
23... Rxa4 {[%clk 0:00:45]} 24. Nb6 {[%clk 0:02:12.2]} 24... Ra3 {[%clk
0:00:42.3]} 25. d4 {[%clk 0:02:10.2]} 25... cxd4 {[%clk 0:00:29.6]} 26. Nxd4
{[%clk 0:02:08.8]} 26... Bc8 {[%clk 0:00:26.3]} 27. Nb5 {[%clk 0:02:01.5]} 27...
Ra6 {[%clk 0:00:23.4]} 28. Nc7 {[%clk 0:02:01.1]} 28... Rxb6 {[%clk 0:00:20.6]}
29. Nxe8+ {[%clk 0:02:00.4]} 1-0

[Event "Late-Titled-Tuesday-Blitz-May-07-2024"]
[Site "Chess.com"]
[Date "2024.05.07"]
[Round "7"]
[White "sudtirolese06"]
[Black "Mikayel99"]
[Result "0-1"]
[WhiteElo "2450"]
[BlackElo "2599"]
[TimeControl "180+1"]
[EndTime "15:14:59 PDT"]
[Termination "Mikayel99 won by checkmate"]

1. e4 {[%clk 0:02:49.9]} 1... d5 {[%clk 0:02:59.8]} 2. exd5 {[%clk 0:02:49.5]}
2... Nf6 {[%clk 0:03:00.5]} 3. d4 {[%clk 0:02:47.5]} 3... Nxd5 {[%clk
0:02:59.9]} 4. c4 {[%clk 0:02:46.7]} 4... Nb6 {[%clk 0:02:59.4]} 5. Nf3 {[%clk
0:02:46.7]} 5... g6 {[%clk 0:02:59.9]} 6. c5 {[%clk 0:02:43]} 6... Nd5 {[%clk
0:02:58.7]} 7. Bc4 {[%clk 0:02:42.5]} 7... Bg7 {[%clk 0:02:55.3]} 8. Nc3 {[%clk
0:02:41.7]} 8... Nxc3 {[%clk 0:02:54.5]} 9. bxc3 {[%clk 0:02:42.6]} 9... O-O
{[%clk 0:02:54.5]} 10. O-O {[%clk 0:02:41.3]} 10... b6 {[%clk 0:02:54.3]} 11.
cxb6 {[%clk 0:02:36.9]} 11... axb6 {[%clk 0:02:55.2]} 12. Qb3 {[%clk 0:02:36.9]}
12... Nc6 {[%clk 0:02:53]} 13. Ng5 {[%clk 0:02:33.4]} 13... e6 {[%clk
0:02:47.3]} 14. Bd3 {[%clk 0:02:29.1]} 14... Bb7 {[%clk 0:02:41.2]} 15. Qc2
{[%clk 0:02:16.7]} 15... Ra5 {[%clk 0:02:33.3]} 16. Ne4 {[%clk 0:02:12.2]} 16...
e5 {[%clk 0:02:27.4]} 17. Rd1 {[%clk 0:02:01.5]} 17... exd4 {[%clk 0:02:25.9]}
18. Bf4 {[%clk 0:02:00.4]} 18... dxc3 {[%clk 0:02:19.2]} 19. Rac1 {[%clk
0:01:58.6]} 19... Nd4 {[%clk 0:02:17.5]} 20. Qb1 {[%clk 0:01:53.4]} 20... Qa8
{[%clk 0:01:47.2]} 21. Nxc3 {[%clk 0:01:42.7]} 21... Bxg2 {[%clk 0:01:46]} 22.
Bxc7 {[%clk 0:01:42.7]} 22... Rg5 {[%clk 0:01:12.8]} 23. f4 {[%clk 0:01:33.3]}
23... Bh3+ {[%clk 0:00:55.8]} 24. Kf2 {[%clk 0:01:29.5]} 24... Rg2+ {[%clk
0:00:51.5]} 25. Ke1 {[%clk 0:01:23.6]} 25... Nf3+ {[%clk 0:00:51.7]} 26. Kf1
{[%clk 0:01:22.7]} 26... Nxh2+ {[%clk 0:00:52]} 27. Ke1 {[%clk 0:01:22.3]} 27...
Re8+ {[%clk 0:00:42.2]} 28. Be4 {[%clk 0:01:11.4]} 28... Nf3+ {[%clk 0:00:41.5]}
29. Kf1 {[%clk 0:01:11.4]} 29... Rh2# {[%clk 0:00:39.8]} 0-1

[Event "Late-Titled-Tuesday-Blitz-May-07-2024"]
[Site "Chess.com"]
[Date "2024.05.07"]
[Round "7"]
[White "Matalon"]
[Black "Seppppppy"]
[Result "0-1"]
[WhiteElo "2365"]
[BlackElo "2188"]
[TimeControl "180+1"]
[EndTime "15:15:03 PDT"]
[Termination "Seppppppy won by resignation"]

1. e4 {[%clk 0:03:00.9]} 1... e5 {[%clk 0:02:59]} 2. Nf3 {[%clk 0:03:00.7]} 2...
Nc6 {[%clk 0:02:58.5]} 3. Bb5 {[%clk 0:03:00]} 3... a6 {[%clk 0:02:57.4]} 4. Ba4
{[%clk 0:02:59.6]} 4... Bc5 {[%clk 0:02:57.2]} 5. O-O {[%clk 0:02:56.9]} 5...
Nge7 {[%clk 0:02:56.3]} 6. Nxe5 {[%clk 0:02:55.8]} 6... Nxe5 {[%clk 0:02:54.1]}
7. d4 {[%clk 0:02:55.8]} 7... b5 {[%clk 0:02:54.3]} 8. Bb3 {[%clk 0:02:54.3]}
8... Bxd4 {[%clk 0:02:53.9]} 9. Qxd4 {[%clk 0:02:53.3]} 9... d6 {[%clk 0:02:54]}
10. f4 {[%clk 0:02:51.8]} 10... c5 {[%clk 0:02:48.1]} 11. Qd1 {[%clk 0:02:51.1]}
11... c4 {[%clk 0:02:28.6]} 12. fxe5 {[%clk 0:02:45.8]} 12... Qb6+ {[%clk
0:02:28.6]} 13. Kh1 {[%clk 0:02:44.4]} 13... dxe5 {[%clk 0:02:28.1]} 14. Qh5
{[%clk 0:02:33.1]} 14... Qe6 {[%clk 0:02:01.2]} 15. a4 {[%clk 0:02:20.3]} 15...
cxb3 {[%clk 0:02:00.3]} 16. axb5 {[%clk 0:02:20.6]} 16... bxc2 {[%clk
0:01:50.7]} 17. Nc3 {[%clk 0:02:20.3]} 17... Bb7 {[%clk 0:01:36.8]} 18. Qe2
{[%clk 0:02:11.4]} 18... O-O {[%clk 0:01:28.4]} 19. Bg5 {[%clk 0:02:07.1]} 19...
f6 {[%clk 0:01:26.6]} 20. Be3 {[%clk 0:02:06.9]} 20... axb5 {[%clk 0:01:26.3]}
21. Qxb5 {[%clk 0:02:02.1]} 21... Ba6 {[%clk 0:01:25.3]} 22. Rxa6 {[%clk
0:01:26]} 22... Qxa6 {[%clk 0:01:24.1]} 23. Rc1 {[%clk 0:01:16.2]} 23... Qxb5
{[%clk 0:01:22.8]} 24. Nxb5 {[%clk 0:01:15.8]} 24... Rab8 {[%clk 0:01:18.6]} 25.
Nd6 {[%clk 0:00:29.5]} 25... Rxb2 {[%clk 0:01:17.8]} 0-1

[Event "Late-Titled-Tuesday-Blitz-May-07-2024"]
[Site "Chess.com"]
[Date "2024.05.07"]
[Round "7"]
[White "Cipy77"]
[Black "K_A_S_T_O_R"]
[Result "0-1"]
[WhiteElo "2640"]
[BlackElo "2833"]
[TimeControl "180+1"]
[EndTime "15:15:07 PDT"]
[Termination "K_A_S_T_O_R won by resignation"]

1. Nf3 {[%clk 0:03:00.9]} 1... c5 {[%clk 0:02:57.3]} 2. g3 {[%clk 0:02:59.3]}
2... b6 {[%clk 0:02:57.3]} 3. Bg2 {[%clk 0:02:59.8]} 3... Bb7 {[%clk 0:02:58]}
4. O-O {[%clk 0:03:00.4]} 4... Nf6 {[%clk 0:02:58.5]} 5. d3 {[%clk 0:03:01.1]}
5... e6 {[%clk 0:02:55.1]} 6. e4 {[%clk 0:03:00]} 6... d6 {[%clk 0:02:55.3]} 7.
Re1 {[%clk 0:02:59.6]} 7... Be7 {[%clk 0:02:53.5]} 8. Nc3 {[%clk 0:03:00.3]}
8... O-O {[%clk 0:02:53.2]} 9. a4 {[%clk 0:02:53.9]} 9... Nc6 {[%clk 0:02:52.9]}
10. Nd2 {[%clk 0:02:52.4]} 10... a6 {[%clk 0:02:48.5]} 11. f4 {[%clk 0:02:51.4]}
11... d5 {[%clk 0:02:42.8]} 12. e5 {[%clk 0:02:51]} 12... Nd7 {[%clk 0:02:42.6]}
13. Nf3 {[%clk 0:02:51.5]} 13... Qc7 {[%clk 0:02:27.7]} 14. Bd2 {[%clk
0:02:50.6]} 14... Rad8 {[%clk 0:02:26.8]} 15. h4 {[%clk 0:02:41.7]} 15... Rfe8
{[%clk 0:02:25.8]} 16. h5 {[%clk 0:02:39.1]} 16... f6 {[%clk 0:02:19.5]} 17. h6
{[%clk 0:02:36]} 17... g6 {[%clk 0:02:14.5]} 18. exf6 {[%clk 0:02:35.4]} 18...
Bxf6 {[%clk 0:02:14.1]} 19. Qe2 {[%clk 0:02:27.7]} 19... Nd4 {[%clk 0:02:10.2]}
20. Qd1 {[%clk 0:02:16.7]} 20... Nf5 {[%clk 0:02:00.9]} 21. g4 {[%clk
0:02:14.7]} 21... Nxh6 {[%clk 0:01:55.4]} 22. g5 {[%clk 0:02:14.6]} 22... Bxc3
{[%clk 0:01:53.7]} 23. Bxc3 {[%clk 0:02:04]} 23... Nf5 {[%clk 0:01:53.9]} 24.
Be5 {[%clk 0:01:56.8]} 24... Qc8 {[%clk 0:01:49.4]} 25. Kf2 {[%clk 0:01:55.6]}
25... d4 {[%clk 0:01:48.3]} 26. Rh1 {[%clk 0:01:55]} 26... Ne3 {[%clk
0:01:47.6]} 27. Qg1 {[%clk 0:01:52.3]} 27... Bxf3 {[%clk 0:01:45.1]} 28. Bxf3
{[%clk 0:01:45.3]} 28... Nxe5 {[%clk 0:01:44.8]} 29. fxe5 {[%clk 0:01:44.9]}
29... Rf8 {[%clk 0:01:43.6]} 30. Ke2 {[%clk 0:01:43.3]} 30... Qc7 {[%clk
0:01:40]} 31. Qh2 {[%clk 0:01:35.4]} 31... Rf7 {[%clk 0:01:29.1]} 32. Be4 {[%clk
0:01:31]} 32... Rdf8 {[%clk 0:01:27]} 33. Rag1 {[%clk 0:01:20.1]} 33... Rf2+
{[%clk 0:01:15.9]} 34. Qxf2 {[%clk 0:01:19.5]} 34... Rxf2+ {[%clk 0:01:16.6]}
35. Kxf2 {[%clk 0:01:20.3]} 35... Qxe5 {[%clk 0:01:16.9]} 36. Ke2 {[%clk
0:01:19]} 36... Nf5 {[%clk 0:01:10.9]} 37. Rh3 {[%clk 0:01:15.5]} 37... Qf4
{[%clk 0:01:09.7]} 38. Rf3 {[%clk 0:01:13.5]} 38... Qh2+ {[%clk 0:01:08.3]} 0-1

[Event "Late-Titled-Tuesday-Blitz-May-07-2024"]
[Site "Chess.com"]
[Date "2024.05.07"]
[Round "7"]
[White "cthulhuuu"]
[Black "kingofthenil"]
[Result "1-0"]
[WhiteElo "2546"]
[BlackElo "2826"]
[TimeControl "180+1"]
[EndTime "15:15:11 PDT"]
[Termination "cthulhuuu won by checkmate"]

1. e4 {[%clk 0:02:59.3]} 1... g6 {[%clk 0:03:00.9]} 2. d4 {[%clk 0:02:58.2]}
2... Bg7 {[%clk 0:03:01.8]} 3. Nc3 {[%clk 0:02:58.8]} 3... d6 {[%clk 0:03:02.7]}
4. f4 {[%clk 0:02:59]} 4... Nf6 {[%clk 0:03:03.6]} 5. Nf3 {[%clk 0:02:59.2]}
5... c6 {[%clk 0:02:56.5]} 6. e5 {[%clk 0:02:56.2]} 6... dxe5 {[%clk 0:02:56.6]}
7. dxe5 {[%clk 0:02:56.5]} 7... Qxd1+ {[%clk 0:02:55.5]} 8. Nxd1 {[%clk
0:02:57.4]} 8... Nd5 {[%clk 0:02:54.2]} 9. c4 {[%clk 0:02:57.8]} 9... Nb4 {[%clk
0:02:54]} 10. Ne3 {[%clk 0:02:58.3]} 10... f6 {[%clk 0:02:54.3]} 11. a3 {[%clk
0:02:58]} 11... N4a6 {[%clk 0:02:50.3]} 12. b4 {[%clk 0:02:50.9]} 12... O-O
{[%clk 0:02:47.7]} 13. Bb2 {[%clk 0:02:49.2]} 13... Be6 {[%clk 0:02:44.6]} 14.
O-O-O {[%clk 0:02:47.9]} 14... Nd7 {[%clk 0:02:44.3]} 15. g4 {[%clk 0:02:22.1]}
15... fxe5 {[%clk 0:02:34.8]} 16. Ng5 {[%clk 0:02:22.1]} 16... exf4 {[%clk
0:02:24.8]} 17. Bxg7 {[%clk 0:02:01.7]} 17... fxe3 {[%clk 0:02:24.4]} 18. Nxe6
{[%clk 0:01:55.5]} 18... Rf2 {[%clk 0:02:04.1]} 19. Rxd7 {[%clk 0:01:53.1]}
19... e2 {[%clk 0:02:03.8]} 20. Bxe2 {[%clk 0:01:47.5]} 20... Rxe2 {[%clk
0:02:00.5]} 21. Rxe7 {[%clk 0:01:47.6]} 21... Rd8 {[%clk 0:01:34.3]} 22. Bf6
{[%clk 0:01:08.2]} 22... Re8 {[%clk 0:00:31]} 23. Rg7+ {[%clk 0:01:05]} 23...
Kh8 {[%clk 0:00:30.3]} 24. Rxg6# {[%clk 0:01:05.2]} 1-0